[Event "Masters Tournament (MTO)"]
[Site "Biel, Switzerland"]
[Date "2026.07.13"]
[Round "1.11"]
[White "Baenziger, Fabian"]
[Black "Stefan, Iulia-Cristiana"]
[Result "1-0"]
[TimeControl "100+30+30sec/move"]
[WhiteTitle "-"]
[BlackTitle "-"]
[WhiteFideId "1330110"]
[BlackFideId "1273876"]
[WhiteElo "2435"]
[BlackElo "2053"]

1. Nf3 {[%clk 01:40:50]} {[%emt 00:00:10]} d5 {[%clk 01:40:54]} {[%emt
00:00:06]} 2. g3 {[%clk 01:41:10]} {[%emt 00:00:10]} Nf6 {[%clk 01:41:16]}
{[%emt 00:00:08]} 3. Bg2 {[%clk 01:41:32]} {[%emt 00:00:08]} e6 {[%clk
01:41:30]} {[%emt 00:00:16]} 4. O-O {[%clk 01:41:18]} {[%emt 00:00:44]} Be7
{[%clk 01:41:56]} {[%emt 00:00:05]} 5. c4 {[%clk 01:41:20]} {[%emt 00:00:27]}
O-O {[%clk 01:42:18]} {[%emt 00:00:08]} 6. d4 {[%clk 01:41:38]} {[%emt
00:00:13]} a5 {[%clk 01:42:43]} {[%emt 00:00:05]} 7. Qc2 {[%clk 01:39:12]}
{[%emt 00:02:55]} Nbd7 {[%clk 01:43:04]} {[%emt 00:00:09]} 8. Bf4 {[%clk
01:37:22]} {[%emt 00:02:19]} Nh5 {[%clk 01:36:39]} {[%emt 00:06:55]} 9. Be3
{[%clk 01:35:44]} {[%emt 00:02:09]} Nhf6 {[%clk 01:29:35]} {[%emt 00:07:34]} 10.
Rc1 {[%clk 01:34:31]} {[%emt 00:01:42]} c6 {[%clk 01:29:05]} {[%emt 00:01:00]}
11. h4 {[%clk 01:30:11]} {[%emt 00:04:50]} h6 {[%clk 01:26:07]} {[%emt
00:03:28]} 12. Nbd2 {[%clk 01:27:33]} {[%emt 00:03:08]} Ng4 {[%clk 01:23:47]}
{[%emt 00:02:50]} 13. Bf4 {[%clk 01:26:59]} {[%emt 00:01:04]} g5 {[%clk
01:16:25]} {[%emt 00:07:52]} 14. hxg5 {[%clk 01:26:42]} {[%emt 00:00:47]} hxg5
{[%clk 01:16:49]} {[%emt 00:00:06]} 15. Be5 {[%clk 01:27:04]} {[%emt 00:00:07]}
f5 {[%clk 01:12:00]} {[%emt 00:05:19]} 16. e3 {[%clk 01:20:12]} {[%emt
00:07:22]} Qe8 {[%clk 01:09:00]} {[%emt 00:03:31]} 17. Bc7 {[%clk 01:13:00]}
{[%emt 00:07:42]} Qh5 {[%clk 01:07:59]} {[%emt 00:01:30]} 18. Nf1 {[%clk
01:12:14]} {[%emt 00:01:17]} Ndf6 {[%clk 00:55:03]} {[%emt 00:13:26]} 19. Ne1
{[%clk 01:07:49]} {[%emt 00:04:54]} Ne8 {[%clk 00:51:09]} {[%emt 00:04:25]} 20.
Bb6 {[%clk 01:06:53]} {[%emt 00:01:26]} Ngf6 {[%clk 00:45:58]} {[%emt
00:05:40]} 21. Nd3 {[%clk 00:57:18]} {[%emt 00:10:04]} Nd7 {[%clk 00:39:47]}
{[%emt 00:06:42]} 22. Bc5 {[%clk 00:56:42]} {[%emt 00:01:06]} Nxc5 {[%clk
00:36:59]} {[%emt 00:03:19]} 23. Nxc5 {[%clk 00:56:28]} {[%emt 00:00:43]} Nd6
{[%clk 00:36:34]} {[%emt 00:00:54]} 24. b3 {[%clk 00:50:09]} {[%emt 00:06:49]}
Ne4 {[%clk 00:31:18]} {[%emt 00:05:46]} 25. Nd3 {[%clk 00:49:56]} {[%emt
00:00:43]} Bd7 {[%clk 00:29:36]} {[%emt 00:02:13]} 26. Ne5 {[%clk 00:47:47]}
{[%emt 00:02:39]} Be8 {[%clk 00:29:56]} {[%emt 00:00:10]} 27. cxd5 {[%clk
00:39:30]} {[%emt 00:08:47]} exd5 {[%clk 00:30:05]} {[%emt 00:00:21]} 28. g4
{[%clk 00:39:55]} {[%emt 00:00:04]} Qh4 {[%clk 00:23:08]} {[%emt 00:07:27]} 29.
gxf5 {[%clk 00:39:04]} {[%emt 00:01:22]} Rxf5 {[%clk 00:11:25]} {[%emt
00:12:13]} 30. Bxe4 {[%clk 00:38:42]} {[%emt 00:00:51]} dxe4 {[%clk 00:11:53]}
{[%emt 00:00:02]} 31. Ng3 {[%clk 00:38:45]} {[%emt 00:00:27]} Rf3 {[%clk
00:08:34]} {[%emt 00:03:49]} 32. Kg2 {[%clk 00:32:35]} {[%emt 00:06:41]} g4
{[%clk 00:02:23]} {[%emt 00:06:41]} 33. Rh1 {[%clk 00:32:32]} {[%emt 00:00:33]}
Qf6 {[%clk 00:01:46]} {[%emt 00:01:07]} 34. Raf1 {[%clk 00:31:04]} {[%emt
00:01:58]} Bg6 {[%clk 00:01:28]} {[%emt 00:00:49]} 35. Rh6 {[%clk 00:31:08]}
{[%emt 00:00:26]} Rxg3+ {[%clk 00:00:36]} {[%emt 00:01:21]} 36. Kxg3 {[%clk
00:27:33]} {[%emt 00:04:04]} Bd6 {[%clk 00:00:57]} {[%emt 00:00:10]} 37. Qxe4
{[%clk 00:27:31]} {[%emt 00:00:32]} Bxe5+ {[%clk 00:00:37]} {[%emt 00:00:50]}
38. Qxe5 {[%clk 00:26:59]} {[%emt 00:01:02]} Qf3+ {[%clk 00:00:44]} {[%emt
00:00:23]} 39. Kh4 {[%clk 00:26:29]} {[%emt 00:00:58]} Be4 {[%clk 00:00:34]}
{[%emt 00:00:41]} 40. Rh8+ {[%clk 00:25:22]} {[%emt 00:01:38]} Kf7 {[%clk
00:00:57]} {[%emt 00:00:08]} 41. Rxa8 {[%clk 00:25:18]} {[%emt 00:00:33]} Qh3+
{[%clk 00:29:19]} {[%emt 00:02:08]} 42. Kg5 {[%clk 00:55:42]} {[%emt 00:00:05]}
1-0

[Event "Masters Tournament (MTO)"]
[Site "Biel, Switzerland"]
[Date "2026.07.13"]
[Round "1.12"]
[White "Morrison, Joseph"]
[Black "Lu, Miaoyi"]
[Result "0-1"]
[TimeControl "100+30+30sec/move"]
[WhiteTitle "-"]
[BlackTitle "-"]
[WhiteFideId "479535"]
[BlackFideId "8618020"]
[WhiteElo "2048"]
[BlackElo "2392"]

1. c4 {[%clk 01:40:55]} Nf6 {[%clk 01:40:48]} {[%emt 00:00:13]} 2. Nc3 {[%clk
01:41:11]} {[%emt 00:00:14]} e5 {[%clk 01:35:51]} {[%emt 00:05:28]} 3. Nf3
{[%clk 01:41:15]} {[%emt 00:00:26]} Nc6 {[%clk 01:36:16]} {[%emt 00:00:05]} 4.
e4 {[%clk 01:41:17]} {[%emt 00:00:27]} Bb4 {[%clk 01:36:21]} {[%emt 00:00:26]}
5. d3 {[%clk 01:41:15]} {[%emt 00:00:31]} d6 {[%clk 01:36:24]} {[%emt
00:00:28]} 6. h3 {[%clk 01:40:24]} {[%emt 00:01:21]} Bc5 {[%clk 01:30:58]}
{[%emt 00:05:56]} 7. a3 {[%clk 01:34:47]} {[%emt 00:06:06]} a6 {[%clk
01:27:58]} {[%emt 00:03:31]} 8. b4 {[%clk 01:28:48]} {[%emt 00:06:29]} Ba7
{[%clk 01:28:26]} {[%emt 00:00:02]} 9. Bb2 {[%clk 01:25:11]} {[%emt 00:04:07]}
Nd4 {[%clk 01:23:35]} {[%emt 00:05:21]} 10. Nxd4 {[%clk 01:10:25]} {[%emt
00:15:16]} Bxd4 {[%clk 01:23:54]} {[%emt 00:00:11]} 11. Qd2 {[%clk 01:09:05]}
{[%emt 00:01:48]} c6 {[%clk 01:17:11]} {[%emt 00:07:15]} 12. g3 {[%clk
00:58:13]} {[%emt 00:11:20]} a5 {[%clk 01:03:31]} {[%emt 00:14:12]} 13. b5
{[%clk 00:52:50]} {[%emt 00:05:53]} a4 {[%clk 00:59:36]} {[%emt 00:04:26]} 14.
Bg2 {[%clk 00:51:13]} {[%emt 00:02:06]} Qa5 {[%clk 00:52:57]} {[%emt 00:07:09]}
15. Rb1 {[%clk 00:49:12]} {[%emt 00:02:31]} Be6 {[%clk 00:47:34]} {[%emt
00:05:54]} 16. Rf1 {[%clk 00:45:23]} {[%emt 00:04:18]} Qa7 {[%clk 00:36:28]}
{[%emt 00:11:38]} 17. Ne2 {[%clk 00:37:09]} {[%emt 00:08:43]} Bc5 {[%clk
00:31:11]} {[%emt 00:05:47]} 18. f4 {[%clk 00:32:45]} {[%emt 00:04:54]} Be3
{[%clk 00:29:38]} {[%emt 00:02:03]} 19. Qc3 {[%clk 00:31:04]} {[%emt 00:02:11]}
Bb6 {[%clk 00:24:19]} {[%emt 00:05:50]} 20. Qc2 {[%clk 00:24:46]} {[%emt
00:06:47]} cxb5 {[%clk 00:24:21]} {[%emt 00:00:29]} 21. fxe5 {[%clk 00:23:26]}
{[%emt 00:01:48]} dxe5 {[%clk 00:24:28]} {[%emt 00:00:25]} 22. Bxe5 {[%clk
00:21:56]} {[%emt 00:01:59]} bxc4 {[%clk 00:21:36]} {[%emt 00:03:23]} 23. Rxf6
{[%clk 00:08:53]} {[%emt 00:13:33]} gxf6 {[%clk 00:20:06]} {[%emt 00:02:00]} 24.
Bxf6 {[%clk 00:09:10]} {[%emt 00:00:13]} cxd3 {[%clk 00:08:23]} {[%emt
00:12:13]} 25. Qxd3 {[%clk 00:08:54]} {[%emt 00:00:46]} O-O {[%clk 00:08:46]}
{[%emt 00:00:07]} 26. Rb5 {[%clk 00:06:21]} {[%emt 00:03:03]} Rfd8 {[%clk
00:05:56]} {[%emt 00:03:21]} 27. Qb1 {[%clk 00:00:43]} {[%emt 00:06:08]} Ba5+
{[%clk 00:05:17]} {[%emt 00:01:09]} 28. Kf1 {[%clk 00:00:51]} {[%emt 00:00:21]}
Rd2 {[%clk 00:05:43]} {[%emt 00:00:04]} 29. Rxb7 {[%clk 00:00:33]} {[%emt
00:00:48]} Qe3 {[%clk 00:05:29]} {[%emt 00:00:44]} 30. Rb8+ {[%clk 00:00:36]}
{[%emt 00:00:28]} Bd8 {[%clk 00:04:24]} {[%emt 00:01:33]} 31. Rxd8+ {[%clk
00:00:32]} {[%emt 00:00:35]} Raxd8 {[%clk 00:04:48]} {[%emt 00:00:07]} 0-1

[Event "Masters Tournament (MTO)"]
[Site "Biel, Switzerland"]
[Date "2026.07.13"]
[Round "1.13"]
[White "Savitha, Shri B"]
[Black "Lumsdon, Andrew"]
[Result "1-0"]
[TimeControl "100+30+30sec/move"]
[WhiteTitle "-"]
[BlackTitle "-"]
[WhiteFideId "35061887"]
[BlackFideId "1308840"]
[WhiteElo "2368"]
[BlackElo "2033"]

1. e4 {[%clk 01:39:52]} {[%emt 00:01:07]} c6 {[%clk 01:39:47]} {[%emt
00:01:14]} 2. d4 {[%clk 01:40:09]} {[%emt 00:00:13]} d5 {[%clk 01:39:54]}
{[%emt 00:00:22]} 3. Nc3 {[%clk 01:40:34]} {[%emt 00:00:06]} dxe4 {[%clk
01:40:18]} {[%emt 00:00:06]} 4. Nxe4 {[%clk 01:40:59]} {[%emt 00:00:05]} Nf6
{[%clk 01:40:38]} {[%emt 00:00:09]} 5. Nxf6+ {[%clk 01:41:25]} {[%emt
00:00:04]} gxf6 {[%clk 01:41:00]} {[%emt 00:00:08]} 6. Nf3 {[%clk 01:41:22]}
{[%emt 00:00:33]} Bg4 {[%clk 01:40:19]} {[%emt 00:01:11]} 7. Be2 {[%clk
01:41:46]} {[%emt 00:00:06]} e6 {[%clk 01:40:43]} {[%emt 00:00:05]} 8. h3
{[%clk 01:41:10]} {[%emt 00:01:08]} Bh5 {[%clk 01:40:24]} {[%emt 00:00:48]} 9.
O-O {[%clk 01:40:35]} {[%emt 00:01:05]} Bd6 {[%clk 01:40:41]} {[%emt 00:00:14]}
10. c4 {[%clk 01:40:55]} {[%emt 00:00:10]} Qc7 {[%clk 01:40:58]} {[%emt
00:00:11]} 11. d5 {[%clk 01:40:35]} {[%emt 00:00:51]} e5 {[%clk 01:38:53]}
{[%emt 00:02:34]} 12. Be3 {[%clk 01:29:25]} {[%emt 00:11:41]} c5 {[%clk
01:30:43]} {[%emt 00:08:40]} 13. Nh4 {[%clk 01:29:21]} {[%emt 00:00:34]} Bg6
{[%clk 01:29:57]} {[%emt 00:01:16]} 14. Bg4 {[%clk 01:26:54]} {[%emt 00:02:58]}
Nd7 {[%clk 01:27:30]} {[%emt 00:02:56]} 15. Qa4 {[%clk 01:24:50]} {[%emt
00:02:34]} b6 {[%clk 01:15:13]} {[%emt 00:12:48]} 16. a3 {[%clk 01:18:34]}
{[%emt 00:06:46]} O-O-O {[%clk 01:03:36]} {[%emt 00:12:06]} 17. b4 {[%clk
01:16:59]} {[%emt 00:02:06]} Kb8 {[%clk 01:03:58]} {[%emt 00:00:06]} 18. Rfd1
{[%clk 01:07:39]} {[%emt 00:09:51]} Rhg8 {[%clk 00:54:53]} {[%emt 00:09:34]} 19.
Qb3 {[%clk 01:04:55]} {[%emt 00:03:16]} h5 {[%clk 00:49:56]} {[%emt 00:05:26]}
20. Bf5 {[%clk 01:03:39]} {[%emt 00:01:46]} Rg7 {[%clk 00:49:10]} {[%emt
00:01:16]} 21. Ra2 {[%clk 00:57:21]} {[%emt 00:06:49]} Ka8 {[%clk 00:49:04]}
{[%emt 00:00:36]} 22. Rb2 {[%clk 00:57:20]} {[%emt 00:00:31]} Rdg8 {[%clk
00:48:26]} {[%emt 00:01:07]} 23. Qd3 {[%clk 00:53:42]} {[%emt 00:04:08]} Nf8
{[%clk 00:36:08]} {[%emt 00:12:48]} 24. bxc5 {[%clk 00:52:29]} {[%emt
00:01:44]} bxc5 {[%clk 00:32:06]} {[%emt 00:04:32]} 25. Bh6 {[%clk 00:52:20]}
{[%emt 00:00:39]} Bxf5 {[%clk 00:28:04]} {[%emt 00:04:31]} 26. Qxf5 {[%clk
00:52:42]} {[%emt 00:00:08]} Rg6 {[%clk 00:28:26]} {[%emt 00:00:08]} 27. Bxf8
{[%clk 00:51:50]} {[%emt 00:01:23]} Bxf8 {[%clk 00:27:54]} {[%emt 00:01:01]} 28.
Nxg6 {[%clk 00:52:16]} {[%emt 00:00:04]} 1-0

[Event "Masters Tournament (MTO)"]
[Site "Biel, Switzerland"]
[Date "2026.07.13"]
[Round "1.14"]
[White "Aryan, Goyal"]
[Black "Cao, Qingfeng"]
[Result "0-1"]
[TimeControl "100+30+30sec/move"]
[WhiteTitle "-"]
[BlackTitle "-"]
[WhiteFideId "366108825"]
[BlackFideId "8627568"]
[WhiteElo "2029"]
[BlackElo "2365"]

1. e4 {[%clk 01:40:49]} {[%emt 00:00:10]} c5 {[%clk 01:40:40]} {[%emt
00:00:21]} 2. Nf3 {[%clk 01:40:47]} {[%emt 00:00:33]} g6 {[%clk 01:40:15]}
{[%emt 00:00:55]} 3. c4 {[%clk 01:40:22]} {[%emt 00:00:54]} Nc6 {[%clk
01:40:29]} {[%emt 00:00:16]} 4. d4 {[%clk 01:40:44]} {[%emt 00:00:09]} cxd4
{[%clk 01:40:52]} {[%emt 00:00:07]} 5. Nxd4 {[%clk 01:40:59]} {[%emt 00:00:14]}
Nf6 {[%clk 01:40:45]} {[%emt 00:00:37]} 6. Nc3 {[%clk 01:41:02]} {[%emt
00:00:27]} Nxd4 {[%clk 01:40:55]} {[%emt 00:00:20]} 7. Qxd4 {[%clk 01:41:09]}
{[%emt 00:00:23]} d6 {[%clk 01:41:11]} {[%emt 00:00:14]} 8. Be3 {[%clk
01:38:55]} {[%emt 00:02:44]} Bg7 {[%clk 01:41:16]} {[%emt 00:00:26]} 9. Be2
{[%clk 01:37:57]} {[%emt 00:01:27]} O-O {[%clk 01:40:37]} {[%emt 00:01:07]} 10.
Qd2 {[%clk 01:38:04]} {[%emt 00:00:24]} a5 {[%clk 01:40:34]} {[%emt 00:00:33]}
11. O-O {[%clk 01:35:38]} {[%emt 00:02:57]} a4 {[%clk 01:40:40]} {[%emt
00:00:24]} 12. Rab1 {[%clk 01:31:03]} {[%emt 00:05:04]} Be6 {[%clk 01:19:14]}
{[%emt 00:21:56]} 13. b3 {[%clk 01:26:13]} {[%emt 00:05:20]} axb3 {[%clk
01:19:14]} {[%emt 00:00:30]} 14. axb3 {[%clk 01:26:25]} {[%emt 00:00:18]} Nd7
{[%clk 01:02:41]} {[%emt 00:17:04]} 15. f4 {[%clk 01:21:51]} {[%emt 00:05:04]}
Nc5 {[%clk 00:59:30]} {[%emt 00:03:41]} 16. Bd4 {[%clk 01:19:57]} {[%emt
00:02:24]} Qb6 {[%clk 00:51:17]} {[%emt 00:08:44]} 17. Qe3 {[%clk 01:13:19]}
{[%emt 00:07:05]} Bxd4 {[%clk 00:50:07]} {[%emt 00:01:43]} 18. Qxd4 {[%clk
01:13:39]} {[%emt 00:00:09]} f6 {[%clk 00:50:01]} {[%emt 00:00:36]} 19. Kh1
{[%clk 01:09:18]} {[%emt 00:04:52]} Qb4 {[%clk 00:38:49]} {[%emt 00:11:41]} 20.
Nb5 {[%clk 01:01:45]} {[%emt 00:08:02]} Ra2 {[%clk 00:37:09]} {[%emt 00:02:10]}
21. Bf3 {[%clk 00:50:15]} {[%emt 00:12:01]} Nxb3 {[%clk 00:30:53]} {[%emt
00:06:47]} 22. Rfd1 {[%clk 00:46:21]} {[%emt 00:04:24]} Qxc4 {[%clk 00:18:01]}
{[%emt 00:13:22]} 23. Qxc4 {[%clk 00:45:45]} {[%emt 00:01:05]} Bxc4 {[%clk
00:18:25]} {[%emt 00:00:06]} 24. Nd4 {[%clk 00:46:04]} {[%emt 00:00:11]} Nxd4
{[%clk 00:18:23]} {[%emt 00:00:32]} 25. Rxd4 {[%clk 00:46:33]} {[%emt
00:00:01]} b5 {[%clk 00:18:42]} {[%emt 00:00:12]} 26. h4 {[%clk 00:45:49]}
{[%emt 00:01:13]} Rfa8 {[%clk 00:16:44]} {[%emt 00:02:28]} 27. Kh2 {[%clk
00:44:53]} {[%emt 00:01:26]} R8a3 {[%clk 00:16:31]} {[%emt 00:00:42]} 0-1

[Event "Masters Tournament (MTO)"]
[Site "Biel, Switzerland"]
[Date "2026.07.13"]
[Round "1.15"]
[White "Dong, Hongfu"]
[Black "Al Ibrahim, Abdulrahman"]
[Result "1-0"]
[TimeControl "100+30+30sec/move"]
[WhiteTitle "-"]
[BlackTitle "-"]
[WhiteFideId "8626960"]
[BlackFideId "10300503"]
[WhiteElo "2353"]
[BlackElo "2016"]

1. e4 {[%clk 01:40:56]} {[%emt 00:00:03]} c6 {[%clk 01:40:38]} {[%emt
00:00:22]} 2. d4 {[%clk 01:41:10]} {[%emt 00:00:16]} d5 {[%clk 01:41:01]}
{[%emt 00:00:07]} 3. e5 {[%clk 01:41:32]} {[%emt 00:00:08]} c5 {[%clk
01:41:19]} {[%emt 00:00:11]} 4. Nf3 {[%clk 01:41:54]} {[%emt 00:00:09]} cxd4
{[%clk 01:41:26]} {[%emt 00:00:22]} 5. Nxd4 {[%clk 01:42:17]} {[%emt 00:00:08]}
Nc6 {[%clk 01:41:38]} {[%emt 00:00:18]} 6. Nxc6 {[%clk 01:42:38]} {[%emt
00:00:09]} bxc6 {[%clk 01:42:01]} {[%emt 00:00:07]} 7. Bd3 {[%clk 01:42:59]}
{[%emt 00:00:07]} e6 {[%clk 01:41:05]} {[%emt 00:01:27]} 8. O-O {[%clk
01:43:18]} {[%emt 00:00:12]} a5 {[%clk 01:40:21]} {[%emt 00:01:15]} 9. Qe2
{[%clk 01:43:37]} {[%emt 00:00:10]} Ne7 {[%clk 01:39:48]} {[%emt 00:01:03]} 10.
Nd2 {[%clk 01:43:54]} {[%emt 00:00:12]} Ng6 {[%clk 01:36:26]} {[%emt 00:03:51]}
11. Nf3 {[%clk 01:44:15]} {[%emt 00:00:11]} Nh4 {[%clk 01:28:44]} {[%emt
00:08:12]} 12. Ng5 {[%clk 01:13:22]} {[%emt 00:31:24]} g6 {[%clk 01:09:55]}
{[%emt 00:19:18]} 13. g3 {[%clk 01:11:58]} {[%emt 00:01:54]} Nf5 {[%clk
01:08:10]} {[%emt 00:02:15]} 14. Re1 {[%clk 01:11:32]} {[%emt 00:00:55]} Be7
{[%clk 01:05:11]} {[%emt 00:03:30]} 15. h4 {[%clk 01:11:00]} {[%emt 00:01:02]}
h6 {[%clk 00:50:56]} {[%emt 00:14:45]} 16. Nf3 {[%clk 01:07:26]} {[%emt
00:04:03]} Qb6 {[%clk 00:32:24]} {[%emt 00:19:03]} 17. Kg2 {[%clk 00:55:56]}
{[%emt 00:12:00]} Ba6 {[%clk 00:31:57]} {[%emt 00:00:57]} 18. c4 {[%clk
00:46:41]} {[%emt 00:09:46]} dxc4 {[%clk 00:19:06]} {[%emt 00:13:20]} 19. Bxc4
{[%clk 00:45:29]} {[%emt 00:01:42]} h5 {[%clk 00:18:02]} {[%emt 00:01:34]} 20.
Bg5 {[%clk 00:43:42]} {[%emt 00:02:16]} Bxg5 {[%clk 00:17:10]} {[%emt
00:01:23]} 21. Nxg5 {[%clk 00:43:58]} {[%emt 00:00:14]} O-O {[%clk 00:11:44]}
{[%emt 00:05:56]} 22. Rac1 {[%clk 00:43:47]} {[%emt 00:00:41]} Bb7 {[%clk
00:09:12]} {[%emt 00:03:03]} 23. Bd3 {[%clk 00:37:27]} {[%emt 00:06:49]} c5+
{[%clk 00:08:03]} {[%emt 00:01:39]} 24. Kh3 {[%clk 00:30:59]} {[%emt 00:06:59]}
Nd4 {[%clk 00:06:49]} {[%emt 00:01:44]} 25. Qe3 {[%clk 00:31:28]} {[%emt
00:00:01]} Bd5 {[%clk 00:06:47]} {[%emt 00:00:32]} 26. Qf4 {[%clk 00:29:40]}
{[%emt 00:02:17]} Qxb2 {[%clk 00:00:50]} {[%emt 00:06:27]} 27. Rxc5 {[%clk
00:30:01]} {[%emt 00:00:10]} Bxa2 {[%clk 00:00:35]} {[%emt 00:00:45]} 28. Rc7
{[%clk 00:27:09]} {[%emt 00:03:22]} Nf5 {[%clk 00:00:43]} {[%emt 00:00:23]} 29.
Bxf5 {[%clk 00:27:20]} {[%emt 00:00:19]} exf5 {[%clk 00:00:35]} {[%emt
00:00:37]} 30. e6 {[%clk 00:27:46]} {[%emt 00:00:04]} f6 {[%clk 00:00:32]}
{[%emt 00:00:34]} 31. Rg7+ {[%clk 00:27:55]} {[%emt 00:00:20]} Kxg7 {[%clk
00:00:50]} {[%emt 00:00:11]} 32. Qc7+ {[%clk 00:28:19]} {[%emt 00:00:08]} 1-0

[Event "Masters Tournament (MTO)"]
[Site "Biel, Switzerland"]
[Date "2026.07.13"]
[Round "1.16"]
[White "Stevens, Christian"]
[Black "Haimovich, Tal"]
[Result "0-1"]
[TimeControl "100+30+30sec/move"]
[WhiteTitle "-"]
[BlackTitle "-"]
[WhiteFideId "649090"]
[BlackFideId "2801698"]
[WhiteElo "2014"]
[BlackElo "2310"]

1. e4 {[%clk 01:40:56]} {[%emt 00:00:04]} e6 {[%clk 01:40:03]} {[%emt
00:00:59]} 2. d4 {[%clk 01:41:12]} {[%emt 00:00:13]} d5 {[%clk 01:40:29]}
{[%emt 00:00:04]} 3. Nc3 {[%clk 01:41:35]} {[%emt 00:00:06]} Bb4 {[%clk
01:40:45]} {[%emt 00:00:15]} 4. Nge2 {[%clk 01:41:57]} {[%emt 00:00:07]} dxe4
{[%clk 01:40:35]} {[%emt 00:00:40]} 5. a3 {[%clk 01:42:20]} {[%emt 00:00:07]}
Be7 {[%clk 01:41:00]} {[%emt 00:00:05]} 6. Nxe4 {[%clk 01:42:44]} {[%emt
00:00:06]} Nc6 {[%clk 01:40:56]} {[%emt 00:00:34]} 7. c3 {[%clk 01:42:52]}
{[%emt 00:00:22]} Nf6 {[%clk 01:40:59]} {[%emt 00:00:28]} 8. N2g3 {[%clk
01:42:33]} {[%emt 00:00:47]} e5 {[%clk 01:39:23]} {[%emt 00:02:08]} 9. Nxf6+
{[%clk 01:37:22]} {[%emt 00:05:40]} Bxf6 {[%clk 01:39:34]} {[%emt 00:00:19]} 10.
d5 {[%clk 01:36:52]} {[%emt 00:00:59]} Ne7 {[%clk 01:40:00]} {[%emt 00:00:06]}
11. Bc4 {[%clk 01:35:11]} {[%emt 00:02:10]} Ng6 {[%clk 01:39:39]} {[%emt
00:00:51]} 12. Nh5 {[%clk 01:29:49]} {[%emt 00:05:51]} O-O {[%clk 01:39:13]}
{[%emt 00:00:57]} 13. Nxf6+ {[%clk 01:26:47]} {[%emt 00:03:32]} Qxf6 {[%clk
01:39:36]} {[%emt 00:00:07]} 14. O-O {[%clk 01:26:35]} {[%emt 00:00:42]} Bd7
{[%clk 01:27:21]} {[%emt 00:12:46]} 15. Be3 {[%clk 01:20:57]} {[%emt 00:06:07]}
Rad8 {[%clk 01:25:30]} {[%emt 00:02:21]} 16. Qb3 {[%clk 01:15:44]} {[%emt
00:05:43]} b6 {[%clk 01:23:08]} {[%emt 00:02:54]} 17. Rad1 {[%clk 01:15:11]}
{[%emt 00:01:02]} Nh4 {[%clk 01:21:09]} {[%emt 00:02:29]} 18. f4 {[%clk
01:12:59]} {[%emt 00:02:41]} Qg6 {[%clk 01:15:49]} {[%emt 00:05:50]} 19. Rf2
{[%clk 01:11:30]} {[%emt 00:01:58]} Bg4 {[%clk 01:09:03]} {[%emt 00:07:17]} 20.
Be2 {[%clk 01:02:02]} {[%emt 00:09:58]} Bxe2 {[%clk 00:54:53]} {[%emt
00:14:41]} 21. Rxe2 {[%clk 01:01:43]} {[%emt 00:00:48]} Nf3+ {[%clk 00:54:58]}
{[%emt 00:00:26]} 22. Kh1 {[%clk 00:47:26]} {[%emt 00:14:46]} Nxh2 {[%clk
00:54:52]} {[%emt 00:00:36]} 23. Qc2 {[%clk 00:42:39]} {[%emt 00:05:17]} Qh5
{[%clk 00:53:36]} {[%emt 00:01:46]} 24. Kg1 {[%clk 00:42:05]} {[%emt 00:01:04]}
Ng4 {[%clk 00:52:13]} {[%emt 00:01:54]} 25. fxe5 {[%clk 00:40:45]} {[%emt
00:01:49]} Qxe5 {[%clk 00:51:31]} {[%emt 00:01:12]} 0-1